bitfinex/quotes_ETHUSD_20230405
["timestamp","ask_amount","ask_price","bid_price","bid_amount"]
[1680671440698,1.7344045,1908.9,1908.7,0.36959543]
[1680671440895,0.90953765,1908.8,1908.7,0.36959543]
[1680671441131,0.91346834,1908.9,1908.6,0.02156692]
[1680671441341,1.45812325,1908.8,1908.6,0.02156692]
[1680671441633,0.90955378,1908.8,1908.6,0.02156692]
[1680671441795,1.7344045,1908.9,1908.6,0.02156692]
[1680671442002,0.90954671,1908.8,1908.7,0.34129078]
[1680671442202,0.91346834,1908.9,1908.7,0.34129078]
[1680671442535,0.67772834,1908.9,1908.7,0.34129078]
[1680671443502,0.91345834,1908.9,1908.7,0.34129078]
[1680671444498,0.67772834,1908.9,1908.7,0.34129078]
[1680671446035,0.91346834,1908.9,1908.7,0.34129078]
[1680671446339,0.67772834,1908.9,1908.7,0.34129078]
[1680671446832,0.91345834,1908.9,1908.7,0.34129078]
[1680671447024,0.67772834,1908.9,1908.7,0.34129078]
[1680671447634,0.91345834,1908.9,1908.7,0.34129078]
[1680671447839,0.67772834,1908.9,1908.7,0.34129078]
[1680671448630,0.91346834,1908.9,1908.7,0.34129078]
[1680671448804,1.22635479,1908.9,1908.7,0.34129078]
[1680671450513,0.67772834,1908.9,1908.7,0.34129078]
[1680671451825,0.91346834,1908.9,1908.7,0.34129078]
[1680671452232,1.60572834,1908.9,1908.7,0.34129078]
[1680671453851,1.84145834,1908.9,1908.7,0.34129078]
[1680671454415,2.38610529,1908.8,1908.7,0.34129078]
[1680671454610,3.85392358,1908.8,1908.7,0.34129078]
[1680671455125,3.85392358,1908.8,1908.3,0.006]
[1680671455328,2.01638776,1908.8,1908.3,0.006]
[1680671455716,2.01638776,1908.8,1908.2,11.52527145]
[1680671455917,2.01638776,1908.8,1908.2,11.78729145]
[1680671456115,2.01638776,1908.8,1908.4,0.31058124]
[1680671461010,1.54488776,1908.8,1908.4,0.31058124]
[1680671461222,0.78431947,1908.8,1908.4,0.31058124]
[1680671461424,0.54856947,1908.8,1908.4,0.31058124]
[1680671461714,1.45811114,1908.8,1908.4,0.31058124]
[1680671462110,0.90954167,1908.8,1908.4,0.31058124]
[1680671462316,0.90954167,1908.8,1908.4,0.57257124]
[1680671462515,0.90954167,1908.8,1908.4,1.05439836]
[1680671463146,0.90954167,1908.8,1908.4,1.31638836]
[1680671463349,0.90954167,1908.8,1908.4,1.05439836]
[1680671463548,0.90954167,1908.8,1908.4,1.31638836]
[1680671463750,0.90954167,1908.8,1908.4,1.05439836]
[1680671464520,1.45811114,1908.8,1908.4,1.05439836]
[1680671464719,1.45811114,1908.8,1908.5,0.10543984]
[1680671464921,2.6643945,1908.9,1908.5,0.10543984]
[1680671465233,0.9095114,1908.8,1908.5,0.10543984]
[1680671465655,1.60572834,1908.9,1908.5,0.10543984]
[1680671466533,4.27210779,1908.9,1908.5,0.10543984]
[1680671467143,3.57984779,1908.9,1908.5,0.10543984]
[1680671470723,0.91346834,1908.9,1908.5,0.10543984]
[1680671472133,0.91346834,1908.9,1908.6,0.29100023]
[1680671472337,3.57984779,1908.9,1908.6,0.38250928]
[1680671472553,3.57984779,1908.9,1908.6,0.29100023]
[1680671473004,0.91346834,1908.9,1908.6,0.29100023]
[1680671473645,0.67772834,1908.9,1908.6,0.29100023]
[1680671473832,0.91345834,1908.9,1908.6,0.29100023]
[1680671475256,3.37983779,1908.9,1908.6,0.29100023]
[1680671476048,0.91345834,1908.9,1908.6,0.29100023]
[1680671476866,0.67772834,1908.9,1908.6,0.29100023]
[1680671477342,0.91345834,1908.9,1908.6,0.29100023]
[1680671478147,3.37983779,1908.9,1908.6,0.29100023]
[1680671478470,0.91345834,1908.9,1908.6,0.29100023]
[1680671479380,0.91345834,1908.9,1908.6,0.8217137]
[1680671479568,0.91345834,1908.9,1908.6,0.38371558]
[1680671479740,0.91345834,1908.9,1908.6,0.29100023]
[1680671481736,1.45808174,1908.8,1908.6,0.29100023]
[1680671481933,2.62084174,1908.8,1908.6,0.29100023]
[1680671482173,1.71132947,1908.8,1908.6,0.29100023]
[1680671483069,1.47556947,1908.8,1908.6,0.29100023]
[1680671483240,1.71131947,1908.8,1908.6,0.29100023]
[1680671484483,2.02460792,1908.8,1908.6,0.29100023]
[1680671484642,0.90954174,1908.7,1908.6,0.29100023]
[1680671484981,1.61682174,1908.7,1908.6,0.29100023]
[1680671485181,1.61682174,1908.7,1908.6,0.05942011]
[1680671485345,1.14530724,1908.7,1908.6,0.05942011]
[1680671485550,0.90954285,1908.7,1908.6,0.05942011]
[1680671485751,1.14530285,1908.7,1908.6,0.05942011]
[1680671486304,1.14530356,1908.7,1908.3,6.8656]
[1680671486497,1.69387303,1908.7,1908.3,8.727932]
[1680671486786,0.54856947,1908.7,1908.3,8.727932]
[1680671486989,1.45812844,1908.7,1908.4,0.49242018]
[1680671487281,0.90955897,1908.7,1908.4,0.49242018]
[1680671487450,1.71132947,1908.8,1908.4,0.49242018]
[1680671487887,0.90954024,1908.7,1908.4,0.49242018]
[1680671488395,1.71132947,1908.8,1908.4,0.49242018]
[1680671488595,0.90954972,1908.7,1908.4,0.49242018]
[1680671488766,0.90954972,1908.7,1908.4,1.41661243]
[1680671489092,0.90954972,1908.7,1908.4,1.63666399]
[1680671489396,0.90954972,1908.7,1908.4,1.50666399]
[1680671490202,0.90954972,1908.7,1908.4,1.44853765]
[1680671490509,1.14530972,1908.7,1908.4,1.44853765]
[1680671490786,2.53826563,1908.8,1908.4,1.44853765]
[1680671490952,0.90955698,1908.7,1908.4,1.44853765]
[1680671493193,1.14531698,1908.7,1908.4,1.44853765]
[1680671493396,0.23576,1908.7,1908.4,1.44853765]
[1680671493691,1.71732947,1908.8,1908.4,1.44853765]
[1680671494787,1.71732947,1908.8,1908.5,0.14485377]
[1680671494989,4.41307451,1908.8,1908.5,0.14485377]
[1680671495390,1.71732947,1908.8,1908.5,0.14485377]
[1680671495575,1.71732947,1908.8,1908.4,1.26339142]
[1680671495778,1.71732947,1908.8,1908.5,0.12633914]
[1680671496297,1.48156947,1908.8,1908.5,0.12633914]
[1680671497678,1.47556947,1908.8,1908.5,0.09536057]
[1680671497878,3.87131451,1908.8,1908.5,0.09536057]
[1680671498092,3.87731451,1908.8,1908.5,0.09536057]
[1680671498292,1.48156947,1908.8,1908.5,0.09536057]
[1680671498599,1.47556947,1908.8,1908.5,0.09536057]
[1680671498814,0.927,1908.8,1908.5,0.09536057]
[1680671499296,3.21421253,1908.9,1908.5,0.09536057]
[1680671499502,3.18584779,1908.9,1908.5,0.09536057]
[1680671502110,4.10884779,1908.9,1908.5,0.09536057]
[1680671503104,0.90948839,1908.8,1908.5,0.62792561]
[1680671503305,1.45805786,1908.8,1908.5,0.09536057]
[1680671503503,4.41084779,1908.9,1908.4,0.73904602]
[1680671503704,0.90949899,1908.8,1908.4,0.73904602]
[1680671504008,4.17510779,1908.9,1908.4,1.00103602]
[1680671504210,0.90949646,1908.8,1908.4,1.00103602]
[1680671504620,0.90949646,1908.8,1908.4,0.73904602]
[1680671504909,3.87510779,1908.9,1908.5,0.1001036]
[1680671505076,3.87310779,1908.9,1908.5,0.1001036]
[1680671506710,0.9094957,1908.8,1908.4,1.25306532]
[1680671506915,1.1452457,1908.8,1908.4,1.25306532]
[1680671507086,0.23575,1908.8,1908.4,1.25306532]
[1680671507288,4.41085779,1908.9,1908.4,1.25306532]
[1680671507611,0.90949915,1908.8,1908.4,0.73904602]
[1680671508393,0.90949915,1908.8,1908.5,0.0739046]
[1680671509677,1.45806862,1908.8,1908.5,0.0739046]
[1680671510084,4.51084779,1908.9,1908.5,0.0739046]
[1680671510308,1.45806412,1908.8,1908.4,0.73904602]
[1680671510617,1.69381412,1908.8,1908.4,0.73904602]
[1680671510794,0.54856947,1908.8,1908.4,0.73904602]
[1680671511115,1.45807702,1908.8,1908.4,0.73904602]
[1680671511484,4.15382206,1908.8,1908.4,0.73904602]
[1680671511686,3.25031451,1908.8,1908.4,0.73904602]
[1680671511922,2.70174504,1908.8,1908.4,0.73904602]
[1680671512095,0.925,1908.8,1908.4,0.73904602]
[1680671512295,1.47356947,1908.8,1908.4,0.73904602]
[1680671512493,0.925,1908.8,1908.5,0.0739046]
[1680671512797,1.16075,1908.8,1908.5,0.0739046]
[1680671513310,1.16075,1908.8,1908.4,0.73904602]
[1680671513311,1.70931947,1908.8,1908.4,0.73904602]
[1680671513505,1.47356947,1908.8,1908.4,0.73904602]
[1680671514023,0.925,1908.8,1908.4,0.73904602]
[1680671514259,3.87304395,1908.9,1908.4,8.88232857]
[1680671514412,3.05010779,1908.9,1908.4,9.14631857]
[1680671514600,3.05010779,1908.9,1908.5,0.91463186]
[1680671515418,3.05010779,1908.9,1908.5,0.86463186]
[1680671516428,3.28583779,1908.9,1908.5,0.86463186]
[1680671516728,3.05010779,1908.9,1908.5,0.86463186]
[1680671517604,3.05010779,1908.9,1908.5,0.53463186]
[1680671518123,3.28583779,1908.9,1908.5,0.53463186]
[1680671518333,3.05010779,1908.9,1908.5,0.53463186]
[1680671519124,3.28584779,1908.9,1908.5,0.53463186]
[1680671519327,3.05010779,1908.9,1908.5,0.53463186]
[1680671519532,2.38104792,1908.8,1908.4,0.02156919]
[1680671519729,1.70732947,1908.8,1908.4,0.02156919]
[1680671519919,4.16731451,1908.8,1908.4,0.02156919]
[1680671520120,4.40906451,1908.8,1908.4,0.02156919]
[1680671520417,0.44090645,1908.7,1908.4,0.02156919]
[1680671520999,0.67666645,1908.7,1908.4,0.02156919]
[1680671521394,0.44090645,1908.7,1908.4,0.02156919]
[1680671523237,3.48607451,1908.8,1908.4,0.02156919]
[1680671525437,3.48007451,1908.8,1908.4,0.02156919]
[1680671526093,3.48607451,1908.8,1908.4,0.02156919]
[1680671526300,0.55456947,1908.8,1908.4,0.02156919]
[1680671526519,0.54856947,1908.8,1908.4,0.28355919]
[1680671526725,4.15381471,1908.8,1908.4,0.28355919]
[1680671527031,3.87747848,1908.8,1908.4,0.02156919]
[1680671527234,3.25031451,1908.8,1908.4,0.28355919]
[1680671527808,0.55456947,1908.8,1908.4,0.28355919]
[1680671528130,0.54856947,1908.8,1908.4,0.28355919]
[1680671528331,1.45806031,1908.8,1908.4,0.28355919]
[1680671528537,1.60772834,1908.9,1908.4,0.28355919]
[1680671528708,1.60172834,1908.9,1908.4,1.60117711]
[1680671528913,1.60772834,1908.9,1908.4,1.60117711]
[1680671529126,1.84345834,1908.9,1908.4,1.33918711]
[1680671529332,1.84345834,1908.9,1908.5,0.13391871]
[1680671529501,1.84345834,1908.9,1908.4,1.33918711]
[1680671530334,1.84345834,1908.9,1908.4,1.8734739]
[1680671530536,1.84345834,1908.9,1908.4,2.1354639]
[1680671530841,4.50983779,1908.9,1908.4,1.7434739]
[1680671532114,3.58583779,1908.9,1908.4,1.7434739]
[1680671532313,3.58583779,1908.9,1908.5,0.17434739]
[1680671533106,3.58583779,1908.9,1908.4,1.58782129]
[1680671533640,3.61874504,1908.8,1908.4,0.53428679]
[1680671533803,3.62474504,1908.8,1908.4,0.26199]
[1680671534749,3.86049504,1908.8,1908.3,6.8596]
[1680671534908,3.86049504,1908.8,1908.4,0.68596]
[1680671535109,3.86049504,1908.8,1908.4,0.35596]
[1680671535308,1.16475,1908.8,1908.4,0.35596]
[1680671536142,0.929,1908.8,1908.4,0.35596]
[1680671536327,0.68372834,1908.9,1908.4,0.61795]
[1680671536528,0.68372834,1908.9,1908.5,0.061795]
[1680671536930,0.68372834,1908.9,1908.5,0.323775]
[1680671537311,0.13515887,1908.9,1908.5,0.323775]
[1680671537517,0.12915887,1908.9,1908.5,0.323775]
[1680671538230,0.67772834,1908.9,1908.5,0.061795]
[1680671538437,1.04459803,1908.9,1908.5,0.323775]
[1680671538637,0.13515887,1908.9,1908.5,0.323775]
[1680671538836,0.12915887,1908.9,1908.5,0.323775]
[1680671539850,0.12915887,1908.9,1908.6,2.63428255]
[1680671540048,0.13515887,1908.9,1908.7,0.26342826]
[1680671540250,0.13515887,1908.9,1908.5,11.765975]
[1680671540715,0.13515887,1908.9,1908.5,18.622975]
[1680671542727,0.12915887,1908.9,1908.5,24.655945]
[1680671542943,0.12915887,1908.9,1908.6,2.4655945]
[1680671543128,0.55456947,1909.1,1908.7,0.78586]
[1680671543454,0.006,1909.1,1908.7,3.42014255]
[1680671543632,0.55456947,1909.3,1908.8,6.3118]
[1680671543835,0.68521201,1909.3,1908.9,0.63118]
[1680671544219,0.55456947,1909.3,1908.9,0.8931]
[1680671545046,0.55456947,1909.3,1908.9,0.63118]
[1680671545242,0.006,1909.3,1908.9,0.8931]
[1680671547145,0.006,1909.3,1909.0,0.08931]
[1680671547551,0.006,1909.3,1909.0,0.35122]
[1680671547868,0.006,1909.3,1909.0,0.08931]
[1680671550330,0.006,1909.3,1909.0,0.35122]
[1680671551362,0.006,1909.3,1909.0,0.08931]
[1680671552155,0.006,1909.3,1908.9,0.89309]
[1680671552470,0.006,1909.3,1908.8,17.79908]
[1680671552686,0.006,1909.3,1908.8,17.53713]
[1680671552965,0.925,1909.2,1908.8,17.53713]
[1680671554437,0.925,1909.2,1908.8,18.06101]
[1680671554745,0.925,1909.2,1908.8,17.2752]
[1680671554939,0.925,1909.2,1908.8,17.53714]
[1680671555363,1.0181,1909.2,1908.8,17.53714]
[1680671555600,0.925,1909.2,1908.8,17.53714]
[1680671555746,0.925,1909.2,1908.8,0.26394]
[1680671556081,0.925,1909.2,1908.8,0.78582]
[1680671556287,0.9224265,1909.2,1908.8,0.78582]
[1680671557272,0.85279376,1909.2,1908.8,0.78582]
[1680671557476,0.85279376,1909.2,1908.9,0.078582]
[1680671557778,0.85279376,1909.2,1909.0,0.26191]
[1680671558077,0.85279376,1909.2,1908.9,0.340492]
[1680671558244,0.85279376,1909.2,1908.9,0.33659972]
[1680671560065,0.85279376,1909.2,1908.9,0.86045972]
[1680671560308,0.85279376,1909.2,1909.0,0.08604597]
[1680671560451,0.85279376,1909.2,1909.0,0.34795597]
[1680671562093,0.94956921,1909.3,1909.0,0.34795597]
[1680671564195,0.928,1909.3,1909.0,0.34795597]
[1680671565374,0.928,1909.3,1909.0,0.08604597]
[1680671566300,0.928,1909.3,1908.9,12.17955972]
[1680671567401,0.928,1909.3,1908.9,11.65569972]
[1680671570086,0.928,1909.3,1908.9,12.17955972]
[1680671571772,0.928,1909.3,1908.9,12.17014711]
[1680671571980,0.928,1909.3,1908.9,20.31342966]
[1680671572171,1.04400001,1909.4,1909.0,10.17462552]
[1680671572505,0.11600001,1909.4,1909.0,4.92952552]
[1680671572673,0.11000001,1909.4,1909.0,4.92752552]
[1680671572873,0.11000001,1909.4,1909.1,0.49275255]
[1680671573507,0.11000001,1909.4,1909.1,6.79655255]
[1680671573707,0.11600001,1909.4,1909.1,6.3058]
[1680671577232,0.11600001,1909.4,1909.1,6.5677]
[1680671578035,0.11600001,1909.4,1909.1,6.3058]
[1680671579475,0.11600001,1909.4,1909.1,6.5677]
[1680671579710,0.11600001,1909.4,1909.1,7.4276043]
[1680671580422,0.11600001,1909.4,1909.1,7.1657043]
[1680671580642,0.11600001,1909.4,1909.1,7.4275943]
[1680671580847,0.11600001,1909.4,1909.1,7.1657043]
[1680671581118,0.11600001,1909.4,1909.1,7.4276043]
[1680671582786,0.11600001,1909.4,1909.1,7.1657043]
[1680671583025,0.11600001,1909.4,1909.1,7.4276043]
[1680671583217,0.11600001,1909.4,1909.1,7.1657043]
[1680671583421,0.11600001,1909.4,1909.1,6.3058]
[1680671585326,0.66456948,1909.4,1909.1,6.3058]
[1680671585982,0.66456948,1909.4,1909.1,6.5677]
[1680671586182,0.66456948,1909.4,1909.1,6.3058]
[1680671586784,0.66456948,1909.4,1909.1,6.5677]
[1680671587186,0.66456948,1909.4,1909.1,6.3058]
[1680671587384,0.66456948,1909.4,1909.1,6.5677]
[1680671588291,0.66456948,1909.4,1909.1,6.3058]
[1680671588591,0.92931557,1909.4,1909.1,6.3058]
[1680671589990,0.66456948,1909.4,1909.1,6.56769]
[1680671592391,0.65544145,1909.4,1909.1,6.57369]
[1680671592593,0.65544145,1909.4,1909.1,6.3118]
[1680671595454,0.65544145,1909.4,1909.1,6.5737]
[1680671595662,0.65544145,1909.4,1909.1,6.3118]
[1680671595864,0.65544145,1909.4,1909.2,0.63118]
[1680671609453,0.65544145,1909.4,1909.1,6.3118]
[1680671609653,0.65544145,1909.4,1909.1,8.94608255]
[1680671613283,0.90921465,1909.3,1909.1,8.94608255]
[1680671613592,1.47637761,1909.4,1909.1,8.94608255]
[1680671613796,0.90921462,1909.3,1909.1,8.94608255]
[1680671613998,0.90921462,1909.3,1909.2,0.89460826]
[1680671615100,0.90920872,1909.3,1909.2,0.89460826]
[1680671615398,1.45777819,1909.3,1909.2,0.89460826]
[1680671616628,1.45777819,1909.3,1909.1,6.3118]
[1680671618230,1.47637761,1909.4,1909.1,6.3118]
[1680671618425,0.90920291,1909.3,1909.1,6.3118]
[1680671618626,1.45777238,1909.3,1909.1,6.5737]
[1680671618834,1.47637761,1909.4,1909.1,6.5737]
[1680671619134,0.90920346,1909.3,1909.1,7.78197]
[1680671620424,0.65544145,1909.4,1909.1,7.78197]
[1680671620727,0.65544145,1909.4,1909.1,15.92525255]
[1680671620915,0.65544145,1909.4,1909.1,10.15435255]
[1680671621420,1.564638,1909.4,1909.1,10.15435255]
[1680671621620,0.90919655,1909.3,1909.1,10.15435255]
[1680671621799,0.90919655,1909.3,1909.2,1.01543526]
[1680671622620,0.65544145,1909.4,1909.2,1.01543526]
[1680671622897,0.65544145,1909.4,1909.2,1.27731526]
[1680671623428,0.65544145,1909.4,1909.2,1.01543526]
[1680671623899,0.65544145,1909.4,1909.2,1.27731526]
[1680671625626,0.65544145,1909.4,1909.2,1.01543526]
[1680671627235,0.65544145,1909.4,1909.1,10.41624255]
[1680671629399,0.65544145,1909.4,1909.2,2.63428255]
[1680671629602,0.65544145,1909.4,1909.2,2.89615255]
[1680671631619,0.65544145,1909.4,1909.2,3.41992255]
[1680671631816,0.65544145,1909.4,1909.2,3.42592255]
[1680671632021,0.65544145,1909.4,1909.2,5.07082181]
[1680671632332,0.65544145,1909.4,1909.2,5.07282181]
[1680671634655,0.10687198,1909.4,1909.2,5.07282181]
[1680671635165,1.56460058,1909.4,1909.2,5.07282181]
[1680671635469,0.10687198,1909.4,1909.2,5.07282181]
[1680671637457,0.10687198,1909.4,1909.3,0.50728218]
[1680671637623,0.10687198,1909.4,1909.3,0.76915218]
[1680671640543,0.10687198,1909.4,1909.3,0.50728218]
[1680671640744,0.10687198,1909.4,1909.2,5.07282181]
[1680671640963,0.69439669,1909.5,1909.2,5.07282181]
[1680671641660,0.69439669,1909.5,1909.2,4.54905181]
[1680671641829,0.69439669,1909.5,1909.2,4.54705181]
[1680671642864,0.69439669,1909.5,1909.2,1.91276926]
[1680671643064,0.69439669,1909.5,1909.2,1.90676926]
[1680671644925,0.69439669,1909.5,1909.2,0.26187]
[1680671645133,0.54856947,1909.4,1909.1,6.3118]
[1680671645331,1.45775334,1909.4,1909.1,0.26989]
[1680671645533,1.45775334,1909.4,1909.1,0.26189]
[1680671645932,1.62239669,1909.5,1909.1,0.26189]
[1680671646459,0.90917047,1909.4,1909.1,0.26189]
[1680671652047,0.69439669,1909.5,1909.1,0.78569]
[1680671654516,0.90916512,1909.4,1909.1,0.78569]
[1680671654827,0.69439669,1909.5,1909.1,0.78569]
[1680671655191,0.90916431,1909.4,1909.1,0.78569]
[1680671656822,0.69439669,1909.5,1909.1,0.78569]
[1680671661557,0.90916723,1909.4,1909.1,0.78569]
[1680671662461,0.90916723,1909.4,1909.1,0.864859]
[1680671663371,0.69439669,1909.5,1909.1,0.864859]
[1680671663552,0.90916475,1909.4,1909.1,0.78569]
[1680671664863,0.69439669,1909.5,1909.1,0.78569]
[1680671665065,0.90916475,1909.4,1909.1,0.78569]
[1680671665225,0.69439669,1909.5,1909.1,0.78569]
[1680671665766,0.90916363,1909.4,1909.1,0.78569]
[1680671665941,0.90916363,1909.4,1909.1,0.864859]
[1680671666753,1.51533285,1909.5,1909.1,0.341059]
[1680671666939,0.90916698,1909.4,1909.1,0.26189]
[1680671667147,0.69439669,1909.5,1909.1,0.26189]
[1680671667339,0.90915815,1909.4,1909.1,0.26189]
[1680671667851,0.69439669,1909.5,1909.1,0.26189]
[1680671671365,0.90915117,1909.4,1909.1,0.26189]
[1680671672448,0.69439669,1909.5,1909.1,0.26189]
[1680671672673,0.69439669,1909.5,1909.1,0.78569]
[1680671672874,0.69439669,1909.5,1909.1,0.864859]
[1680671674376,0.69439669,1909.5,1909.1,0.341059]
[1680671674756,0.90914527,1909.4,1909.1,0.341059]
[1680671676576,1.45771474,1909.4,1909.1,0.341059]
[1680671676745,0.54856947,1909.4,1909.1,0.341059]
[1680671677275,1.45773741,1909.4,1909.1,0.341059]
[1680671677484,1.51533285,1909.5,1909.1,0.341059]
[1680671677670,0.90915029,1909.4,1909.1,0.341059]
[1680671679259,1.51533285,1909.5,1909.1,0.341059]
[1680671679260,0.69439669,1909.5,1909.1,0.864859]
[1680671680270,0.69439669,1909.5,1909.2,0.0864859]
[1680671680470,0.69439669,1909.5,1909.3,0.26187]
[1680671681059,0.69439669,1909.5,1909.2,0.26187]
[1680671682148,0.69439669,1909.5,1909.1,6.8724]
[1680671682348,0.90913817,1909.4,1909.1,6.8724]
[1680671682548,0.69439669,1909.5,1909.2,0.68724]
[1680671683563,0.54856947,1909.4,1909.2,0.68724]
[1680671683956,1.45772488,1909.4,1909.2,0.68724]
[1680671685486,0.69439669,1909.5,1909.2,0.68724]
[1680671685658,0.90914196,1909.4,1909.2,0.68724]
[1680671685863,0.69439669,1909.5,1909.2,0.68724]
[1680671686187,0.9091417,1909.4,1909.2,0.68724]
[1680671686383,2.42447455,1909.5,1909.2,0.68724]
[1680671686595,0.90914218,1909.4,1909.2,0.68724]
[1680671686885,1.51533285,1909.5,1909.2,0.68724]
[1680671687084,0.90914353,1909.4,1909.2,0.68724]
[1680671687294,0.90914353,1909.4,1909.2,0.94912]
[1680671687455,0.90914353,1909.4,1909.2,0.68724]
[1680671689387,0.90914353,1909.4,1909.2,0.94912]
[1680671689595,0.90914353,1909.4,1909.2,0.68724]
[1680671689757,0.69439669,1909.5,1909.2,0.68724]
[1680671690797,0.69439669,1909.5,1909.3,0.068724]
[1680671694159,0.69439669,1909.5,1909.3,0.330594]
[1680671694354,0.14582722,1909.5,1909.3,0.330594]
[1680671694590,0.14582722,1909.5,1909.3,0.068724]
[1680671695163,0.14582722,1909.5,1909.3,0.330594]
[1680671696971,0.14582722,1909.5,1909.3,0.068724]
[1680671701460,0.14582722,1909.5,1909.2,0.68724]
[1680671701665,0.14582722,1909.5,1909.2,3.32152255]
[1680671702342,0.14582722,1909.5,1909.2,3.32752255]
[1680671702540,0.14582722,1909.5,1909.2,2.64028255]
[1680671702812,0.69439669,1909.5,1909.1,6.87239]
[1680671702976,0.14582722,1909.5,1909.1,9.50667255]
[1680671703180,0.14582722,1909.5,1909.1,10.24783281]
[1680671703586,0.14582722,1909.5,1909.1,10.50973281]
[1680671703798,0.14582722,1909.5,1909.1,10.24783281]
[1680671704581,0.14582722,1909.5,1909.1,10.50973281]
[1680671705213,0.14582722,1909.5,1909.1,7.61355026]
[1680671705385,0.01687199,1909.5,1909.1,7.87545026]
[1680671710741,0.01687199,1909.5,1909.1,0.2699]
[1680671710936,0.01687199,1909.5,1909.1,0.2619]
[1680671712239,0.94487199,1909.5,1909.1,0.2619]
[1680671713739,0.94487199,1909.5,1909.1,0.7857]
[1680671714605,0.94487199,1909.5,1909.1,0.2619]
[1680671714907,0.94487199,1909.5,1909.1,0.7857]
[1680671715747,0.01687199,1909.5,1909.1,1.91248]
[1680671715958,0.01687199,1909.5,1909.1,8.60158]
[1680671716112,0.01687199,1909.5,1909.1,8.60958]
[1680671717061,0.01687199,1909.5,1909.2,2.63428255]
[1680671717210,0.01687199,1909.5,1909.2,2.89615255]
[1680671717415,0.01687199,1909.5,1909.3,0.28961526]
[1680671717640,0.01687199,1909.5,1909.2,2.89615255]
[1680671717641,0.01687199,1909.5,1909.2,2.63428255]
[1680671718452,0.01687199,1909.5,1909.2,2.89616255]
[1680671720742,0.01687199,1909.5,1909.2,2.63428255]
[1680671721411,0.01687199,1909.5,1909.2,2.89616255]
[1680671721618,0.01687199,1909.5,1909.2,2.63428255]
[1680671721817,0.01687199,1909.5,1909.2,3.65390581]
[1680671722030,0.01687199,1909.5,1909.2,1.02562326]
[1680671722249,0.01687199,1909.5,1909.2,1.01962326]
[1680671722423,0.01687199,1909.5,1909.2,1.28150326]
[1680671725951,0.01687199,1909.5,1909.2,1.80527326]
[1680671726154,0.01687199,1909.5,1909.3,0.18052733]
[1680671726356,0.01687199,1909.5,1909.3,0.44238733]
[1680671727030,0.01687199,1909.5,1909.3,0.96613733]
[1680671727230,0.01457618,1909.5,1909.3,0.96613733]
[1680671727434,0.01457618,1909.5,1909.3,3.60041988]
[1680671727634,0.01457618,1909.5,1909.4,0.62190199]
[1680671728359,0.01457618,1909.5,1909.4,1.14562199]
[1680671728925,0.01457618,1909.5,1909.4,0.62190199]
[1680671730628,0.01457618,1909.5,1909.4,3.77990454]
[1680671733150,0.01457618,1909.5,1909.4,4.10449806]
[1680671733539,0.01457618,1909.5,1909.4,3.58077806]
[1680671736936,0.01457618,1909.5,1909.4,4.10449806]
[1680671737131,0.01457618,1909.5,1909.4,9.61949806]
[1680671737332,0.01457618,1909.5,1909.4,11.87764464]
[1680671737954,0.01457618,1909.5,1909.4,18.17974464]
[1680671738769,0.01457618,1909.5,1909.4,17.08159806]
[1680671739353,7.619e-05,1909.6,1909.5,0.5]
[1680671739559,0.11000001,1909.8,1909.6,0.5]
[1680671739731,0.11000001,1909.8,1909.7,22.62292255]
[1680671739942,0.11000001,1909.8,1909.7,22.85492255]
[1680671740142,0.07908387,1909.8,1909.7,22.85492255]
[1680671741042,0.04875268,1909.8,1909.7,23.15823445]
[1680671741245,0.04875268,1909.8,1909.7,24.17785771]
[1680671742049,0.018721,1909.8,1909.7,31.00615771]
[1680671743268,0.11000001,1909.9,1909.7,31.00615771]
[1680671743858,0.11000001,1909.9,1909.7,31.52310984]
[1680671744044,0.11000001,1909.9,1909.8,6.31539116]
[1680671744249,0.11000001,1909.9,1909.8,9.73708371]
[1680671746784,0.11000001,1909.9,1909.8,10.66208371]
[1680671747082,0.11000001,1909.9,1909.8,10.89208371]
[1680671748052,0.01000001,1909.9,1909.8,10.89208371]
[1680671751121,0.01000001,1909.9,1909.8,9.96708371]
[1680671754500,0.01000001,1909.9,1909.8,9.73708371]
[1680671760666,0.01000001,1909.9,1909.8,3.70447371]
[1680671760879,0.01000001,1909.9,1909.8,0.26582184]
[1680671761094,0.01000001,1909.9,1909.8,0.52762184]
[1680671761499,0.01000001,1909.9,1909.8,0.26582184]
[1680671761693,0.01000001,1909.9,1909.8,0.52762184]
[1680671761974,0.01000001,1909.9,1909.8,3.68551439]
[1680671762167,0.01000001,1909.9,1909.8,3.91386106]
[1680671763202,0.01000001,1909.9,1909.8,6.13296517]
[1680671763413,0.01000001,1909.9,1909.8,6.13496517]
[1680671766516,0.01000001,1909.9,1909.8,0.75796851]
[1680671766676,0.01000001,1909.9,1909.8,0.75596851]
[1680671766873,0.01000001,1909.9,1909.8,0.49416851]
[1680671768192,0.01000001,1909.9,1909.8,0.71745974]
[1680671769684,0.01000001,1909.9,1909.8,0.97925974]
[1680671770088,0.01000001,1909.9,1909.8,0.71745974]
[1680671770689,0.01000001,1909.9,1909.8,0.97925974]
[1680671771622,0.00717947,1909.9,1909.8,0.97925974]
[1680671772925,0.00717947,1909.9,1909.8,4.93592226]
[1680671780029,0.00717947,1909.9,1909.8,4.67412226]
[1680671780208,0.00717947,1909.9,1909.8,10.44492226]
[1680671780403,0.00717947,1909.9,1909.8,10.44692226]
[1680671780915,0.00717947,1909.9,1909.8,16.68392226]
[1680671781504,0.00717947,1909.9,1909.8,17.20753226]
[1680671783926,0.00717947,1909.9,1909.8,16.42212226]
[1680671785745,0.00717947,1909.9,1909.8,16.68392226]
[1680671785910,0.00717947,1909.9,1909.8,17.20753226]
[1680671792423,0.00717947,1909.9,1909.8,16.68392226]
[1680671793256,0.00717947,1909.9,1909.8,17.20753226]
[1680671793638,0.00717947,1909.9,1909.8,17.43753226]
[1680671794517,0.00409081,1909.9,1909.8,17.43753226]
[1680671796059,0.00409081,1909.9,1909.8,17.20753226]
[1680671797522,0.00409081,1909.9,1909.8,17.43753226]
[1680671803159,0.00409081,1909.9,1909.8,18.53293247]
[1680671804781,0.00409081,1909.9,1909.8,17.43753226]
[1680671804981,0.00409081,1909.9,1909.8,17.20753226]
[1680671808569,0.00409081,1909.9,1909.8,16.68392226]
[1680671809640,0.00409081,1909.9,1909.8,9.59074229]
[1680671809851,0.00409081,1909.9,1909.8,9.85254229]
[1680671810165,0.93109081,1909.9,1909.8,0.71945974]
[1680671810331,0.93109081,1909.9,1909.8,0.71745974]
[1680671816335,1.85709081,1909.9,1909.8,0.71745974]
[1680671816533,2.11348189,1909.9,1909.8,0.71745974]
[1680671819254,2.11348189,1909.9,1909.8,0.26582184]
[1680671819673,2.11348189,1909.9,1909.8,0.26268827]
[1680671820374,2.11348189,1909.9,1909.4,0.26185]
[1680671820589,0.928,1909.6,1909.4,0.26185]